bitfinex-derivatives/quotes_ETHF0:USTF0_20250331
["timestamp","ask_amount","ask_price","bid_price","bid_amount"]
[1743439561109,1.4451,1846.6,1846.5,1.08321]
[1743439561311,1.4451,1846.6,1846.5,4.29101]
[1743439561518,2.52825,1846.6,1846.5,4.29101]
[1743439562017,2.52825,1846.6,1846.5,5.79461]
[1743439562722,1.08321,1846.5,1846.4,0.7335]
[1743439562926,1.08321,1846.5,1846.4,3.32035]
[1743439562927,1.3885,1846.5,1846.4,3.32035]
[1743439563115,2.47171,1846.5,1846.4,3.32035]
[1743439563724,0.00813758,1846.7,1846.4,3.32035]
[1743439563912,5.8396231,1847.2,1846.4,3.32035]
[1743439563913,3.2078,1847.3,1846.5,4.7114]
[1743439564116,3.67,1847.5,1847.2,1.0828]
[1743439564318,0.7098,1847.5,1847.2,2.70701]
[1743439564511,3.67,1847.7,1847.6,1.08257]
[1743439564717,25.49916741,1847.8,1847.7,1.08251]
[1743439564912,25.49916741,1847.8,1847.7,3.2078]
[1743439565114,26.58161741,1847.8,1847.7,3.2078]
[1743439565519,1.08251,1847.7,1847.6,1.43293758]
[1743439565715,2.50421,1847.7,1847.6,1.43293758]
[1743439566020,2.50421,1847.7,1847.6,2.51550758]
[1743439566426,2.50421,1847.7,1847.6,1.43293758]
[1743439566612,2.50421,1847.7,1847.6,0.00813758]
[1743439566924,9.38101,1847.7,1847.6,0.00813758]
[1743439567215,1.0828,1847.2,1847.1,0.6876]
[1743439567623,2.70716,1847.1,1846.7,3.2078]
[1743439567815,2.70716,1847.1,1846.8,2.50784]
[1743439567816,1.08298,1846.9,1846.8,2.50784]
[1743439568016,1.08298,1846.9,1846.8,1.4248]
[1743439568825,1.08298,1846.9,1846.7,0.00813758]
[1743439568826,1.08304,1846.8,1846.7,0.00813758]
[1743439569024,2.55394,1846.8,1846.7,0.00813758]
[1743439569718,1.4709,1846.8,1846.7,1.09122758]
[1743439570427,0.00813758,1847.0,1846.7,1.42533758]
[1743439570617,0.00813758,1847.0,1846.8,1.08301]
[1743439570618,2.55391,1846.9,1846.8,1.08301]
[1743439571520,1.08304,1846.8,1846.7,1.42533758]
[1743439571824,2.48544,1846.8,1846.7,1.42533758]
[1743439572020,2.48544,1846.8,1846.7,2.50842758]
[1743439572327,2.48544,1846.8,1846.7,0.00813758]
[1743439573321,2.70774,1846.7,1845.9,3.2078]
[1743439573515,1.08344,1846.2,1846.1,1.08343]
[1743439573719,1.08345,1846.1,1846.0,1.3636]
[1743439574323,1.08355,1846.0,1845.9,1.08354]
[1743439574518,1.08355,1846.0,1845.9,2.47407758]
[1743439575324,1.08355,1846.0,1845.9,1.39053758]
[1743439575637,1.08355,1846.0,1845.9,0.00813758]
[1743439575822,1.08355,1846.0,1845.9,1.09169758]
[1743439576022,1.08355,1846.0,1845.9,0.00813758]
[1743439576333,2.47815,1846.0,1845.9,0.00813758]
[1743439576529,10.10405,1846.0,1845.9,0.00813758]
[1743439576835,1.08372,1845.7,1845.6,1.08372]
[1743439577123,1.08374,1845.6,1845.5,4.29157]
[1743439577327,1.08374,1845.6,1845.5,4.29156]
[1743439577528,3.2078,1845.7,1845.4,1.3824]
[1743439577724,1.08376,1845.6,1845.5,1.08378]
[1743439578329,6.88493758,1845.7,1845.5,1.08378]
[1743439578628,4.76086758,1845.7,1845.5,1.08375]
[1743439578829,1.08374,1845.6,1845.5,1.08375]
[1743439579028,4.76086758,1845.7,1845.5,1.08375]
[1743439579336,3.67713758,1845.7,1845.5,1.08375]
[1743439579534,1.08374,1845.6,1845.5,1.08375]
[1743439580529,1.08374,1845.6,1845.4,1.3824]
[1743439580931,1.08374,1845.6,1845.5,1.0838]
[1743439581530,1.08374,1845.6,1845.4,2.46621]
[1743439581733,1.0838,1845.5,1845.4,2.46622]
[1743439582924,1.08386,1845.4,1845.3,1.09205758]
[1743439583125,1.08386,1845.4,1845.3,0.00813758]
[1743439583326,4.75286,1845.4,1845.3,0.00813758]
[1743439584829,1.08413,1845.0,1844.8,1.08417]
[1743439585228,3.67,1845.1,1844.8,1.08417]
[1743439585429,1.08415,1844.9,1844.8,1.08417]
[1743439585629,3.67,1845.1,1844.7,5.67205]
[1743439585831,3.67,1845.1,1844.8,1.08421]
[1743439586132,1.08416,1844.9,1844.8,1.08421]
[1743439586334,4.4097,1845.1,1844.8,1.08421]
[1743439586535,1.08415,1844.9,1844.8,1.08421]
[1743439586832,1.08421,1844.8,1844.7,5.68017758]
[1743439587827,4.75421,1844.8,1844.7,0.00813758]
[1743439588028,7.96201,1844.8,1844.7,0.00813758]
[1743439588930,1.08454,1844.3,1844.1,1.08458]
[1743439589235,1.08456,1844.2,1844.1,1.4925]
[1743439589832,3.2078,1844.2,1843.8,1.08477]
[1743439590032,1.08475,1843.9,1843.7,4.29264]
[1743439590329,1.08477,1843.9,1843.7,4.29263]
[1743439590724,3.67,1844.1,1843.7,4.29263]
[1743439590928,1.08478,1843.9,1843.7,4.29262]
[1743439591133,3.67,1844.1,1843.7,4.7106]
[1743439591334,1.08471,1844.0,1843.8,1.08476]
[1743439591538,1.372,1844.0,1843.9,1.5028]
[1743439591831,2.45668,1844.0,1843.9,1.5028]
[1743439592441,1.08476,1843.9,1843.8,1.4562]
[1743439592637,2.54616,1843.9,1843.8,1.4562]
[1743439593033,2.54616,1843.9,1843.8,2.541]
[1743439593230,2.54616,1843.9,1843.8,1.4562]
[1743439593540,4.6692,1843.9,1843.6,0.69712503]
[1743439593734,4.6692,1843.9,1843.6,0.00542503]
[1743439594035,4.75681,1843.8,1843.6,0.00542503]
[1743439594237,6.21821,1843.8,1843.6,0.00542503]
[1743439594435,5.1334,1843.8,1843.7,1.08486]
[1743439594637,5.1334,1843.8,1843.7,2.54106]
[1743439594830,2.54616,1843.9,1843.7,5.74881]
[1743439595140,2.54616,1843.9,1843.7,2.54101]
[1743439595339,2.54616,1843.9,1843.8,1.0848]
[1743439595545,1.4614,1843.9,1843.8,1.0848]
[1743439595842,2.54614,1843.9,1843.7,5.74881]
[1743439596545,2.54614,1843.9,1843.8,1.0848]
[1743439596839,1.4614,1843.9,1843.7,5.74882]
[1743439597037,1.4614,1843.9,1843.7,4.664]
[1743439597239,1.0848,1843.8,1843.7,5.74884]
[1743439597543,2.54619,1843.9,1843.8,1.0848]
[1743439597939,1.4614,1843.9,1843.8,1.0848]
[1743439598336,2.54614,1843.9,1843.8,1.0848]
[1743439598547,2.54614,1843.9,1843.7,4.664]
[1743439598741,1.4614,1843.9,1843.8,1.0848]
[1743439598944,1.4614,1843.9,1843.8,1.7664]
[1743439599142,1.08462,1844.1,1844.0,1.08464]
[1743439599447,4.75661,1844.2,1844.1,1.08462]
[1743439599650,1.08462,1844.1,1844.0,1.08464]
[1743439599844,4.75662,1844.2,1844.0,1.08464]
[1743439600051,1.08462,1844.1,1844.0,1.08464]
[1743439600246,2.46972,1844.1,1844.0,1.08464]
[1743439600442,2.46972,1844.1,1844.0,1.08468]
[1743439600643,2.46976,1844.1,1844.0,1.08468]
[1743439601551,1.08474,1843.9,1843.8,3.23395]
[1743439601944,1.08472,1844.0,1843.9,1.08473]
[1743439602146,1.08468,1844.0,1843.9,2.55229]
[1743439602554,1.08468,1844.0,1843.9,2.55232]
[1743439602851,1.08468,1844.0,1843.9,1.4676]
[1743439603348,1.3851,1844.1,1843.9,1.4676]
[1743439603545,4.75658,1844.2,1844.1,1.08462]
[1743439603747,1.50993758,1844.3,1844.2,1.08456]
[1743439603942,1.50993758,1844.3,1844.2,2.55216]
[1743439604148,0.00813758,1844.3,1844.2,2.55216]
[1743439605456,1.09263758,1844.3,1844.2,2.55216]
[1743439605749,2.48683758,1844.3,1844.2,2.55216]
[1743439606355,2.48683758,1844.3,1844.2,1.4676]
[1743439607457,2.48683758,1844.3,1844.2,2.55216]
[1743439608153,1.40233758,1844.3,1844.2,2.55216]
[1743439608849,2.48683758,1844.3,1844.2,2.55216]
[1743439611853,1.08456,1844.2,1844.1,4.29238]
[1743439612051,2.49226,1844.2,1844.1,4.29238]
[1743439612957,2.49226,1844.2,1844.1,4.29242]
[1743439613256,1.08462,1844.1,1844.0,2.56086]
[1743439613458,2.48012,1844.1,1844.0,2.56086]
[1743439614355,2.48012,1844.1,1844.0,3.28703805]
[1743439615757,2.48012,1844.1,1844.0,3.28748698]
[1743439616360,1.3955,1844.1,1844.0,3.28748698]
[1743439616556,2.48012,1844.1,1844.0,3.28748698]
[1743439618862,2.48012,1844.1,1844.0,2.20282698]
[1743439619062,3.17052,1844.1,1844.0,0.72662698]
[1743439619263,1.08486,1843.7,1843.6,1.09029503]
[1743439619466,1.08486,1843.7,1843.6,1.81839564]
[1743439619970,1.08486,1843.7,1843.6,1.81841121]
[1743439620165,1.08486,1843.8,1843.7,1.0848]
[1743439620364,1.0848,1843.8,1843.7,0.72811618]
[1743439620565,2.4528,1843.8,1843.7,0.72811618]
[1743439621182,1.08486,1843.7,1843.6,2.47673503]
[1743439621486,2.45286,1843.7,1843.6,3.20492458]
[1743439621978,2.45286,1843.7,1843.6,0.73360458]
[1743439622479,2.45286,1843.7,1843.6,0.00542503]
[1743439623186,5.66066,1843.7,1843.6,0.00542503]
[1743439625379,2.45286,1843.7,1843.6,1.09034503]
[1743439625572,2.45286,1843.7,1843.6,0.00542503]
[1743439626180,2.45286,1843.7,1843.6,1.38832503]
[1743439626883,2.45286,1843.7,1843.6,0.00542503]
[1743439627181,3.13036,1843.7,1843.6,0.00542503]
[1743439627382,6.33816,1843.7,1843.6,0.00542503]
[1743439627778,2.71272,1843.4,1843.0,4.29302]
[1743439627980,2.71272,1843.4,1843.1,0.72696702]
[1743439627981,1.08515,1843.2,1843.1,0.72696702]
[1743439628286,1.08521,1843.1,1843.0,1.3829]
[1743439628474,1.08527,1843.0,1842.9,1.80253]
[1743439628782,1.08527,1843.0,1842.9,3.17768748]
[1743439628985,2.52597,1843.0,1842.9,3.17768748]
[1743439629678,3.68013758,1843.1,1843.0,1.08527]
[1743439629679,0.00813758,1843.1,1843.0,1.08527]
[1743439629870,3.672,1843.6,1843.0,5.32568692]
[1743439630074,6.3843,1843.6,1843.2,3.2078]
[1743439630275,1.08506,1843.4,1843.3,1.3918]
[1743439630483,1.08519,1843.2,1843.0,3.2078]
[1743439630674,1.08519,1843.2,1843.1,2.47697]
[1743439631076,3.68013758,1843.3,1843.2,1.08515]
[1743439631278,0.00813758,1843.3,1843.2,5.68475]
[1743439632085,1.09322758,1843.3,1843.2,5.68475]
[1743439632581,0.00813758,1843.3,1843.2,5.68475]
[1743439633485,1.09322758,1843.3,1843.2,5.68475]
[1743439634284,0.00813758,1843.3,1843.2,5.68475]
[1743439635874,0.00813758,1843.3,1843.2,8.91048035]
[1743439636080,1.08502,1843.5,1843.4,1.08497]
[1743439636274,1.08497,1843.6,1843.5,1.08491]
[1743439636475,1.472,1843.7,1843.6,1.08487]
[1743439636685,2.55686,1843.7,1843.6,4.29267]
[1743439636880,1.472,1843.7,1843.6,4.29267]
[1743439637081,3.68013758,1843.8,1843.6,3.2078]
[1743439637381,6.23693758,1843.8,1843.7,1.4702]
[1743439637577,4.76493758,1843.8,1843.7,1.4702]
[1743439637875,4.76493758,1843.8,1843.7,2.55506]
[1743439638284,0.00813758,1843.8,1843.7,2.55506]
[1743439638486,0.00813758,1843.8,1843.7,3.25426]
[1743439639183,0.00813758,1843.8,1843.7,3.98029372]
[1743439639688,0.00813758,1843.8,1843.7,3.25426]
[1743439639891,1.09293758,1843.8,1843.7,3.25426]
[1743439640094,0.00813758,1843.8,1843.7,3.25426]
[1743439642088,1.09293758,1843.8,1843.7,3.25426]
[1743439642595,0.00813758,1843.8,1843.7,3.25426]
[1743439643791,1.09293758,1843.8,1843.7,3.25426]
[1743439644187,1.09293758,1843.8,1843.7,2.55506]
[1743439645590,1.08486,1843.7,1843.6,3.2078]
[1743439645795,1.81686,1843.7,1843.6,4.29272]
[1743439646195,1.81686,1843.7,1843.6,3.2078]
[1743439646391,2.71244,1843.6,1843.4,3.2078]
[1743439646697,1.08509,1843.3,1843.2,4.29292]
[1743439646892,1.08508,1843.4,1843.3,1.08504]
[1743439647189,1.08502,1843.5,1843.4,1.08498]
[1743439647392,1.08503,1843.4,1843.3,3.21234]
[1743439648188,3.672,1843.6,1843.5,1.08497]
[1743439648689,1.08497,1843.5,1843.4,3.2078]
[1743439650893,1.08503,1843.4,1843.3,0.7525]
[1743439651096,1.08503,1843.4,1843.3,1.83759]
[1743439651291,1.085,1843.5,1843.4,1.08497]
[1743439651596,1.085,1843.5,1843.4,2.44823]
[1743439651792,1.4699,1843.5,1843.4,2.44823]
[1743439652097,6.22687,1843.5,1843.4,1.3632]
[1743439652298,6.22687,1843.5,1843.4,2.44823]
[1743439652492,2.55487,1843.5,1843.4,1.3632]
[1743439652990,1.4699,1843.5,1843.1,1.7953]
[1743439653196,1.08515,1843.2,1843.1,3.2201]
[1743439653495,1.08515,1843.2,1843.1,2.51]
[1743439653694,1.08515,1843.2,1843.1,1.4248]
[1743439653897,2.45305,1843.2,1843.1,2.51001]
[1743439654093,2.45305,1843.2,1843.1,1.4248]
[1743439654291,2.45305,1843.2,1843.1,2.51001]
[1743439655092,1.3679,1843.2,1843.1,2.51001]
[1743439655294,1.3679,1843.2,1843.0,3.89973758]
[1743439655491,1.08521,1843.1,1843.0,4.64073758]
[1743439655685,1.08521,1843.1,1843.0,3.21593758]
[1743439656094,2.48131,1843.1,1843.0,3.21593758]
[1743439657398,2.48131,1843.1,1843.0,5.75440758]
[1743439657787,2.48131,1843.1,1843.0,4.30120758]
[1743439658099,2.48131,1843.1,1843.0,0.00813758]
[1743439661194,1.08545,1842.7,1842.6,3.9066]
[1743439661399,2.71336,1842.9,1842.7,1.08539]
[1743439661400,1.08543,1842.8,1842.7,1.08539]
[1743439661700,2.49753,1842.8,1842.7,1.4917]
[1743439662998,3.18543,1842.8,1842.7,1.4917]
[1743439664096,1.08545,1842.7,1842.6,1.09363758]
[1743439664297,2.45765,1842.7,1842.6,0.00813758]
[1743439665598,3.8722,1842.7,1842.0,4.29363]
[1743439665904,1.0858,1842.1,1842.0,1.08583]
[1743439666098,3.672,1842.2,1842.1,1.08574]
[1743439666400,1.4022,1842.3,1842.2,1.08574]
[1743439666606,4.75758,1842.5,1842.4,1.08556]
[1743439668101,1.08567,1842.4,1842.3,1.08565]
[1743439668298,2.52377,1842.4,1842.3,1.08565]
[1743439669199,1.4381,1842.4,1842.2,3.2078]
[1743439669402,1.08568,1842.4,1842.3,1.08565]
[1743439669602,1.08568,1842.3,1842.2,4.29348]
[1743439670805,2.52378,1842.4,1842.3,1.08568]
[1743439672001,4.75761,1842.5,1842.4,1.08562]
[1743439672605,1.08568,1842.4,1842.3,1.08564]
[1743439672801,2.55378,1842.4,1842.3,1.08564]
[1743439673408,4.75761,1842.5,1842.4,1.08562]
[1743439673599,3.672,1842.5,1842.4,1.08562]
[1743439673800,4.75756,1842.5,1842.4,1.08562]
[1743439673996,1.08556,1842.5,1842.4,1.08562]
[1743439674201,6.22666,1842.6,1842.5,1.08556]
[1743439675108,6.22666,1842.6,1842.5,1.83776]
[1743439675403,0.00813758,1842.9,1842.5,6.67388]
[1743439675605,0.00813758,1842.9,1842.8,1.08539]
[1743439675906,1.09346758,1842.9,1842.8,1.08539]
[1743439676106,0.00813758,1842.9,1842.8,1.80209]
[1743439676906,5.1106,1843.3,1843.2,1.08515]
[1743439677103,7.59699748,1843.3,1843.2,1.08515]
[1743439677305,1.08515,1843.2,1843.1,4.29297]
[1743439677503,2.51205,1843.2,1843.1,1.08517]
[1743439679505,1.08527,1843.1,1843.0,1.08524]
[1743439679901,2.5121,1843.2,1843.1,1.08521]
[1743439680409,1.4269,1843.2,1843.1,1.08521]
[1743439681304,2.51205,1843.2,1843.1,1.08521]
[1743439682208,1.08527,1843.0,1842.9,4.98029]
[1743439682506,1.4242,1843.1,1842.8,2.1072]
[1743439682706,1.08539,1842.8,1842.7,0.00813758]
[1743439682907,4.75739,1842.8,1842.7,0.00813758]
[1743439683116,5.49979,1842.8,1842.7,0.00813758]
[1743439684426,8.70759,1842.8,1842.7,0.00813758]
[1743439686616,8.70759,1842.8,1842.7,0.00188829]
[1743439687210,7.96519,1842.8,1842.7,0.00188829]
[1743439688518,1.08576,1842.3,1841.9,3.2078]
[1743439688716,1.0858,1842.1,1842.0,1.81294]
[1743439688915,1.0858,1842.1,1842.0,2.1072]
[1743439689216,1.0858,1842.1,1842.0,1.3801]
[1743439689419,1.0858,1842.1,1841.8,1.08594]
[1743439689420,1.08592,1841.9,1841.8,1.08594]
[1743439689715,4.75791,1842.0,1841.9,1.08592]
[1743439690020,5.1279,1842.0,1841.9,1.08592]
[1743439690214,5.1279,1842.0,1841.8,2.44403]
[1743439690415,1.08592,1841.9,1841.8,2.44403]
[1743439690615,1.08592,1841.9,1841.8,1.08593]
[1743439691116,4.75791,1842.0,1841.9,1.08592]
[1743439691420,3.672,1842.0,1841.9,1.08592]
[1743439692123,6.38666,1842.0,1841.7,3.9589]
[1743439692421,1.08598,1841.8,1841.7,5.04492]
[1743439692718,1.08595,1841.9,1841.8,1.08593]
[1743439693117,1.08598,1841.8,1841.7,3.9589]
[1743439693320,1.08598,1841.8,1841.7,0.7511]
[1743439693517,1.08609,1841.6,1841.5,4.29394]
[1743439693724,6.38669,1842.0,1841.5,3.2078]
[1743439694024,1.08605,1841.7,1841.6,1.08604]
[1743439694419,1.08609,1841.6,1841.5,4.2939]
[1743439695321,1.08615,1841.5,1841.4,1.81389]
[1743439696425,3.673,1841.7,1841.4,0.7277]
[1743439696623,1.08615,1841.5,1841.4,1.81387]
[1743439696926,1.08615,1841.6,1841.5,1.08614]
[1743439697123,1.08615,1841.5,1841.4,1.81386]
[1743439697818,4.3758,1841.7,1841.2,4.98191]
[1743439698024,1.08627,1841.3,1841.2,1.4087]
[1743439698428,1.08639,1841.1,1841.0,3.2078]
[1743439698737,4.3798,1841.4,1841.0,3.2078]
[1743439699037,0.00813758,1841.2,1841.1,4.29419]
[1743439701737,0.00813758,1841.2,1841.1,5.75649]
[1743439707137,7.58e-06,1841.2,1841.1,5.75649]
[1743439707841,7.58e-06,1841.2,1841.1,6.43499]
[1743439708042,7.58e-06,1841.2,1841.1,7.1587718]
[1743439708340,7.58e-06,1841.2,1841.1,6.43499]
[1743439711640,7.58e-06,1841.2,1841.1,7.16007754]
[1743439712542,7.58e-06,1841.2,1841.1,9.66007754]
[1743439713239,7.58e-06,1841.2,1841.1,7.16007754]
[1743439713635,7.58e-06,1841.2,1841.1,9.66007754]
[1743439715639,0.7279,1841.9,1841.1,8.57368754]
[1743439715836,0.7279,1841.9,1841.8,4.29378]
[1743439716342,2.71423,1842.3,1842.1,1.08574]
[1743439716343,1.08579,1842.2,1842.1,1.08574]
[1743439716646,1.76885053,1842.2,1842.1,1.08574]
[1743439716846,1.0858,1842.1,1842.0,5.70185758]
[1743439717040,1.0858,1842.1,1842.0,5.66871811]
[1743439717345,2.5877,1842.1,1842.0,5.66871811]
[1743439718641,2.5877,1842.1,1842.0,0.00813758]
[1743439720640,1.08598,1841.8,1841.7,4.29379]
[1743439721548,1.3752,1841.8,1841.7,4.29379]
[1743439721751,1.3752,1841.8,1841.7,5.02189077]
[1743439722349,1.3752,1841.8,1841.7,5.02186303]
[1743439723254,2.46118,1841.8,1841.7,5.02186303]
[1743439723444,1.3752,1841.8,1841.7,4.29379]
[1743439723951,3.19888,1841.8,1841.7,4.29379]
[1743439724252,2.1129,1841.8,1841.7,4.29379]
[1743439724846,3.19888,1841.8,1841.7,4.29379]
[1743439725246,2.1129,1841.8,1841.7,4.29379]
[1743439726354,2.1129,1841.8,1841.7,5.02176926]
[1743439726550,2.1129,1841.8,1841.7,5.02173025]
[1743439726751,3.19888,1841.8,1841.7,5.02173025]
[1743439726951,2.1129,1841.8,1841.7,4.29379]
[1743439727252,2.1129,1841.8,1841.3,3.2078]
[1743439727450,1.08621,1841.4,1841.3,4.29404]
[1743439727650,1.08621,1841.4,1841.3,5.02210369]
[1743439727954,2.0854,1841.5,1841.4,1.08621]
[1743439728157,1.4029,1841.5,1841.4,3.26387369]
[1743439728359,1.4029,1841.5,1841.4,3.26389875]
[1743439728843,0.6825,1841.8,1841.5,2.71527]
[1743439729047,1.379,1841.7,1841.6,5.70579718]
[1743439729255,1.79062,1841.9,1841.8,1.08598]
[1743439729752,3.16962,1841.9,1841.8,1.08598]
[1743439733255,2.0837,1841.9,1841.8,5.02217711]
[1743439734157,3.16962,1841.9,1841.8,4.29378]
[1743439735254,2.0837,1841.9,1841.8,5.02240725]
[1743439735650,3.16962,1841.9,1841.8,5.02240725]
[1743439735852,3.16962,1841.9,1841.8,3.93642725]
[1743439736051,3.16962,1841.9,1841.8,4.29378]
[1743439738159,3.16962,1841.9,1841.8,5.02267313]
[1743439738359,3.16962,1841.9,1841.8,5.02273375]
[1743439738757,3.16962,1841.9,1841.8,4.29378]
[1743439739162,2.0837,1841.9,1841.8,5.02276834]
[1743439739366,1.379,1841.9,1841.8,5.02276834]
[1743439739851,1.81903,1842.1,1842.0,1.08586]
[1743439740047,1.08583,1842.1,1842.0,1.08586]
[1743439740765,1.08583,1842.1,1842.0,1.81518765]
[1743439740963,2.72235758,1842.3,1842.2,1.08574]
[1743439740964,0.00813758,1842.3,1842.2,1.08574]
[1743439741162,0.00813758,1842.3,1842.2,5.02286546]
[1743439741459,0.00813758,1842.3,1842.2,6.45137382]
[1743439741662,1.38633758,1842.3,1842.2,6.45137382]
[1743439742254,2.47201758,1842.3,1842.2,6.45137382]
[1743439742857,1.38633758,1842.3,1842.2,6.45137382]
[1743439743256,1.38633758,1842.3,1842.2,6.45085371]
[1743439744754,1.38633758,1842.3,1842.2,5.36511371]
[1743439744755,2.47201758,1842.3,1842.2,5.36511371]
[1743439744960,2.47201758,1842.3,1842.2,1.08574]
[1743439745467,1.38633758,1842.3,1842.2,1.08574]
[1743439745664,1.38633758,1842.3,1842.2,2.49234]
[1743439745865,1.38633758,1842.3,1842.2,5.70014]
[1743439746066,1.38633758,1842.3,1842.2,6.42865928]
[1743439747169,1.38633758,1842.3,1842.2,6.4285044]
[1743439747466,1.38633758,1842.3,1842.2,5.70014]
[1743439748472,0.00813758,1842.3,1842.2,6.42829718]
[1743439749167,5.47199,1842.8,1842.7,1.08545]
[1743439749374,2.71321,1843.0,1842.8,1.08539]
[1743439749375,1.4166,1842.9,1842.8,1.08539]
[1743439749579,1.4166,1842.9,1842.8,1.76529]
[1743439749779,1.82273,1843.1,1843.0,1.08527]
[1743439750067,3.22273748,1843.1,1843.0,1.08527]
[1743439750275,1.08527,1843.0,1842.9,3.18268]
[1743439750573,2.48007,1843.0,1842.9,2.08080748]
[1743439750769,1.08539,1842.8,1842.7,1.08541]
[1743439751269,1.08549,1842.7,1842.6,1.08546]
[1743439751471,1.08556,1842.6,1842.5,1.08553]
[1743439751973,1.3948,1842.7,1842.4,3.9289]
[1743439751974,1.08556,1842.5,1842.4,3.9289]
[1743439752175,1.08556,1842.5,1842.2,3.43824]
[1743439752176,1.08562,1842.4,1842.3,1.08565]
[1743439753376,3.15322,1842.4,1842.3,1.08565]
[1743439754282,2.0676,1842.4,1842.3,4.29345]
[1743439754487,3.15322,1842.4,1842.3,4.29345]
[1743439754783,3.15322,1842.4,1842.3,5.79085]
[1743439755281,2.0676,1842.4,1842.3,5.79085]
[1743439755590,1.3824,1842.4,1842.3,5.79085]
[1743439756780,1.77873,1842.6,1842.5,1.08556]
[1743439756979,3.26453,1842.6,1842.5,1.08556]
[1743439757785,2.179,1842.6,1842.5,1.08556]
[1743439757984,1.08543,1842.8,1842.5,1.80576]
[1743439758179,0.7066,1842.9,1842.8,1.08539]
[1743439758180,0.6932,1842.9,1842.8,1.08539]
[1743439758881,1.08522,1843.1,1843.0,1.08527]
[1743439759185,1.74682748,1843.1,1843.0,1.08527]
[1743439759380,3.20552748,1843.1,1843.0,1.08527]
[1743439759791,3.20552748,1843.1,1843.0,2.44877]
[1743439760684,3.22211,1843.1,1843.0,2.44877]
[1743439760892,2.1369,1843.1,1843.0,2.44877]
[1743439761079,1.4587,1843.1,1843.0,2.44877]
[1743439761280,0.00813758,1843.2,1843.1,1.08521]
[1743439761480,0.00813758,1843.2,1843.1,4.29301]
[1743439764279,1.37513758,1843.2,1843.1,4.29301]
[1743439764889,2.46028758,1843.2,1843.1,4.29301]
[1743439765089,1.37513758,1843.2,1843.1,4.29301]
[1743439768093,1.37513758,1843.2,1843.1,5.03351]
[1743439770995,2.46028758,1843.2,1843.1,4.29301]
[1743439771197,1.37513758,1843.2,1843.1,4.29301]
[1743439772504,2.46028758,1843.2,1843.1,4.29301]
[1743439772798,3.14538758,1843.2,1843.1,4.29301]
[1743439772991,2.06023758,1843.2,1843.1,4.29301]
[1743439776402,0.00813758,1843.2,1843.1,4.29301]
[1743439776995,0.00813758,1843.2,1843.1,5.01894957]
[1743439777202,0.00813758,1843.2,1843.1,5.01895683]
[1743439777599,0.6921,1843.6,1843.5,1.08497]
[1743439777797,1.08488,1843.7,1843.3,5.42528]
[1743439777798,3.31928,1843.7,1843.6,1.08492]
[1743439777993,2.55688,1843.7,1843.6,1.08492]
[1743439778800,1.08495,1843.6,1843.5,1.09305758]
[1743439780498,1.08495,1843.6,1843.5,0.00813758]
[1743439781409,1.08495,1843.6,1843.5,1.09310758]
[1743439782405,1.08495,1843.6,1843.5,0.00813758]
[1743439782807,1.08495,1843.6,1843.5,1.09310758]
[1743439783905,6.2239,1843.7,1843.6,1.08492]
[1743439786203,2.5569,1843.7,1843.6,1.08492]
[1743439791814,4.022,1843.7,1843.6,1.08492]
[1743439792504,2.2153,1843.7,1843.6,1.08492]
[1743439792705,0.00813758,1843.8,1843.7,1.08486]
[1743439793011,0.00813758,1843.8,1843.7,3.85729511]
[1743439793218,0.00813758,1843.8,1843.7,3.85725449]
[1743439794602,0.00813758,1843.8,1843.7,3.85664929]
[1743439796407,0.00813758,1843.8,1843.7,3.12846]
[1743439796612,0.00813758,1843.8,1843.7,3.85628748]
[1743439800406,0.00813758,1843.8,1843.7,3.85599901]
[1743439801210,1.43123758,1843.8,1843.7,3.12846]
[1743439801409,2.51603758,1843.8,1843.7,3.12846]
[1743439801608,1.08492,1843.6,1843.5,0.00813758]
[1743439801913,1.08514,1843.3,1843.2,1.08512]
[1743439802113,1.08509,1843.4,1843.3,1.08508]
[1743439802318,1.4653,1843.4,1843.3,1.08508]
[1743439802508,2.55033,1843.4,1843.3,1.08508]
[1743439802913,1.4653,1843.4,1843.3,1.08508]
[1743439803109,2.55033,1843.4,1843.3,1.08508]
[1743439803313,2.55033,1843.4,1843.3,2.53748]
[1743439803922,1.4653,1843.4,1843.2,3.21593758]
[1743439804109,2.52913,1843.5,1843.4,1.08503]
[1743439804313,2.52913,1843.5,1843.3,1.4524]
[1743439804314,1.08503,1843.4,1843.3,1.4524]
[1743439804511,1.08509,1843.3,1843.2,4.30106758]
[1743439804922,1.08509,1843.3,1843.2,0.00813758]
[1743439805513,1.08509,1843.3,1843.2,1.09322758]
[1743439805822,3.665,1843.4,1843.3,1.08509]
[1743439806020,4.75003,1843.4,1843.3,2.45099]
[1743439806217,3.665,1843.4,1843.3,2.45099]
[1743439806418,4.75003,1843.4,1843.3,2.45099]
[1743439806723,4.75003,1843.4,1843.3,1.3659]
[1743439806919,1.08509,1843.3,1843.2,1.09326758]
[1743439807317,1.08509,1843.3,1843.2,0.00813758]
[1743439808121,1.08509,1843.3,1843.2,1.09328758]
[1743439808519,1.08509,1843.3,1843.2,0.00813758]
[1743439809719,1.08509,1843.3,1843.2,1.09328758]
[1743439809922,1.08509,1843.4,1843.3,1.08505]
[1743439810122,5.1091,1843.5,1843.2,1.49413758]
[1743439810324,1.08509,1843.3,1843.2,2.57923758]
[1743439811329,1.08509,1843.3,1843.2,0.00813758]
[1743439812121,1.08509,1843.3,1843.2,1.09328758]
[1743439812316,10.53402,1843.5,1843.4,1.08503]
[1743439812317,5.1091,1843.5,1843.4,1.08503]
[1743439812625,0.7529,1843.5,1843.4,1.08503]
[1743439812928,1.83787,1843.5,1843.4,1.08503]
[1743439813130,1.83787,1843.5,1843.4,1.76983]
[1743439813330,1.83787,1843.5,1843.4,3.27023]
[1743439813921,1.08497,1843.5,1843.4,3.27023]